[Event "Titled Tuesday Blitz March 08 Late 2022"]
[White "Mangialardo, Tiago Carvalho"]
[Black "Toncheva, Nadya"]
[WhiteFideId "2130718"]
[BlackFideId "2924056"]
[WhiteElo "2095"]
[BlackElo "1884"]
[Result "0-1"]
[Round "05"]
[TimeControl "180+1"]
[Date "2022.03.09"]
[WhiteClock "0:00:01"]
[BlackClock "0:00:09"]

1. e4 {[%clk 0:02:57]}  Nf6 {[%clk 0:02:50]} 2. Nc3 {[%clk 0:02:54]}  d5 {[%clk 0:02:46]} 3. e5 {[%clk 0:02:44]}  d4 {[%clk 0:02:43]} 4. exf6 {[%clk 0:02:39]}  dxc3 {[%clk 0:02:44]} 5. fxe7 {[%clk 0:02:16]}  cxd2+ {[%clk 0:02:41]} 6. Bxd2 {[%clk 0:02:01]}  Bxe7 {[%clk 0:02:38]} 7. Qe2 {[%clk 0:01:59]}  O-O {[%clk 0:02:33]} 8. O-O-O {[%clk 0:01:59]}  Be6 {[%clk 0:02:29]} 9. Kb1 {[%clk 0:01:57]}  c5 {[%clk 0:02:27]} 10. Qd3 {[%clk 0:01:57]}  Nc6 {[%clk 0:02:23]} 11. f4 {[%clk 0:01:53]}  Qxd3 {[%clk 0:02:13]} 12. Bxd3 {[%clk 0:01:52]}  Bd5 {[%clk 0:02:14]} 13. Nf3 {[%clk 0:01:47]}  Bxf3 {[%clk 0:02:12]} 14. gxf3 {[%clk 0:01:48]}  Rfe8 {[%clk 0:02:08]} 15. Rhg1 {[%clk 0:01:46]}  Bd6 {[%clk 0:02:07]} 16. Rg4 {[%clk 0:01:40]}  Nd4 {[%clk 0:02:05]} 17. Be4 {[%clk 0:01:29]}  f5 {[%clk 0:01:54]} 18. Bd5+ {[%clk 0:01:29]}  Kf8 {[%clk 0:01:54]} 19. Rg5 {[%clk 0:01:17]}  g6 {[%clk 0:01:45]} 20. h4 {[%clk 0:01:06]}  Rad8 {[%clk 0:01:37]} 21. c4 {[%clk 0:01:05]}  Be7 {[%clk 0:01:31]} 22. Rg2 {[%clk 0:00:57]}  Bf6 {[%clk 0:01:24]} 23. h5 {[%clk 0:00:26]}  gxh5 {[%clk 0:01:24]} 24. Rh1 {[%clk 0:00:20]}  h4 {[%clk 0:01:21]} 25. Bxb7 {[%clk 0:00:18]}  Ne2 {[%clk 0:00:50]} 26. Bd5 {[%clk 0:00:14]}  Ng3 {[%clk 0:00:32]} 27. Rd1 {[%clk 0:00:05]}  Bd4 {[%clk 0:00:20]} 28. Be1 {[%clk 0:00:05]}  Ne2 {[%clk 0:00:16]} 29. Bxh4 {[%clk 0:00:02]}  Bg7 {[%clk 0:00:13]} 30. Rg5 {[%clk 0:00:02]}  Nd4 {[%clk 0:00:09]} 31. a3 {[%clk 0:00:01]}  Rb8 {[%clk 0:00:09]} 0-1


[Site "https://www.chess.com"]

[Event "Titled Tuesday Blitz March 08 Late 2022"]
[White "Martinez Alcantara, Jose Eduardo"]
[Black "Tristan, Leonardo"]
[WhiteFideId "3805662"]
[BlackFideId "113816"]
[WhiteElo "2690"]
[BlackElo "2404"]
[Result "1-0"]
[Round "05"]
[TimeControl "180+1"]
[Date "2022.03.08"]
[WhiteClock "0:00:15"]
[BlackClock "0:00:13"]

1. e4 {[%clk 0:02:51]}  Nf6 {[%clk 0:02:58]} 2. e5 {[%clk 0:02:50]}  Nd5 {[%clk 0:02:59]} 3. d4 {[%clk 0:02:51]}  d6 {[%clk 0:02:59]} 4. Nf3 {[%clk 0:02:51]}  dxe5 {[%clk 0:02:59]} 5. Nxe5 {[%clk 0:02:52]}  c6 {[%clk 0:03:00]} 6. Be2 {[%clk 0:02:51]}  Bf5 {[%clk 0:03:00]} 7. Bd3 {[%clk 0:02:50]}  Bxd3 {[%clk 0:02:56]} 8. Nxd3 {[%clk 0:02:50]}  e6 {[%clk 0:02:54]} 9. O-O {[%clk 0:02:49]}  Be7 {[%clk 0:02:54]} 10. c4 {[%clk 0:02:48]}  Nf6 {[%clk 0:02:53]} 11. Be3 {[%clk 0:02:48]}  O-O {[%clk 0:02:52]} 12. Nc3 {[%clk 0:02:49]}  Nbd7 {[%clk 0:02:51]} 13. h3 {[%clk 0:02:48]}  Qa5 {[%clk 0:02:47]} 14. a3 {[%clk 0:02:43]}  Qf5 {[%clk 0:02:45]} 15. Re1 {[%clk 0:02:30]}  Rad8 {[%clk 0:02:44]} 16. Qe2 {[%clk 0:02:30]}  Rfe8 {[%clk 0:02:42]} 17. g4 {[%clk 0:02:22]}  Qa5 {[%clk 0:02:37]} 18. g5 {[%clk 0:02:17]}  Qf5 {[%clk 0:02:21]} 19. gxf6 {[%clk 0:02:10]}  Nxf6 {[%clk 0:02:21]} 20. Qf1 {[%clk 0:01:35]}  b6 {[%clk 0:01:57]} 21. Rad1 {[%clk 0:01:33]}  Nh5 {[%clk 0:01:42]} 22. Qg2 {[%clk 0:01:11]}  Bf6 {[%clk 0:01:34]} 23. Qg4 {[%clk 0:01:10]}  g6 {[%clk 0:01:24]} 24. Ne2 {[%clk 0:00:40]}  Qa5 {[%clk 0:01:18]} 25. Nef4 {[%clk 0:00:40]}  Ng7 {[%clk 0:01:18]} 26. Qf3 {[%clk 0:00:29]}  Nf5 {[%clk 0:01:02]} 27. Nb4 {[%clk 0:00:29]}  Nxd4 {[%clk 0:00:53]} 28. Bxd4 {[%clk 0:00:28]}  Rxd4 {[%clk 0:00:53]} 29. Nxc6 {[%clk 0:00:23]}  Rxd1 {[%clk 0:00:54]} 30. Nxa5 {[%clk 0:00:16]}  Rxe1+ {[%clk 0:00:53]} 31. Kg2 {[%clk 0:00:17]}  bxa5 {[%clk 0:00:53]} 32. Nd3 {[%clk 0:00:18]}  Bc3 {[%clk 0:00:15]} 33. Nxe1 {[%clk 0:00:16]}  Bxe1 {[%clk 0:00:15]} 34. Qe3 {[%clk 0:00:17]}  Bxf2 {[%clk 0:00:12]} 35. Kxf2 {[%clk 0:00:17]}  Rb8 {[%clk 0:00:12]} 36. Qc3 {[%clk 0:00:16]}  a4 {[%clk 0:00:12]} 37. c5 {[%clk 0:00:16]}  Rb3 {[%clk 0:00:12]} 38. Qxb3 {[%clk 0:00:14]}  axb3 {[%clk 0:00:13]} 39. c6 {[%clk 0:00:15]} 1-0


[Site "https://www.chess.com"]

[Event "Titled Tuesday Blitz March 08 Late 2022"]
[White "Martirosyan, Haik M."]
[Black "Leiva, Gianmarco"]
[WhiteFideId "13306553"]
[BlackFideId "3804399"]
[WhiteElo "2735"]
[BlackElo "2311"]
[Result "1-0"]
[Round "05"]
[TimeControl "180+1"]
[Date "2022.03.08"]
[WhiteClock "0:00:32"]
[BlackClock "0:00:01"]

1. e4 {[%clk 0:02:59]}  c5 {[%clk 0:03:00]} 2. Nf3 {[%clk 0:02:57]}  d6 {[%clk 0:03:00]} 3. Bb5+ {[%clk 0:02:52]}  Nd7 {[%clk 0:02:59]} 4. O-O {[%clk 0:02:48]}  a6 {[%clk 0:02:57]} 5. Bxd7+ {[%clk 0:02:47]}  Bxd7 {[%clk 0:02:56]} 6. d4 {[%clk 0:02:48]}  cxd4 {[%clk 0:02:56]} 7. Qxd4 {[%clk 0:02:49]}  Nf6 {[%clk 0:02:57]} 8. c4 {[%clk 0:02:48]}  e6 {[%clk 0:02:56]} 9. Nc3 {[%clk 0:02:45]}  Be7 {[%clk 0:02:53]} 10. b3 {[%clk 0:02:45]}  O-O {[%clk 0:02:50]} 11. a4 {[%clk 0:02:39]}  b5 {[%clk 0:02:45]} 12. Ba3 {[%clk 0:02:09]}  e5 {[%clk 0:01:54]} 13. Qd3 {[%clk 0:02:06]}  bxc4 {[%clk 0:01:53]} 14. bxc4 {[%clk 0:02:05]}  Qc7 {[%clk 0:01:43]} 15. Rfc1 {[%clk 0:01:56]}  Rfc8 {[%clk 0:01:34]} 16. Nd2 {[%clk 0:01:49]}  Bf8 {[%clk 0:01:05]} 17. h3 {[%clk 0:01:44]}  Nh5 {[%clk 0:00:57]} 18. Nd5 {[%clk 0:01:44]}  Qd8 {[%clk 0:00:57]} 19. a5 {[%clk 0:01:39]}  Nf4 {[%clk 0:00:47]} 20. Nxf4 {[%clk 0:01:38]}  exf4 {[%clk 0:00:48]} 21. Bb2 {[%clk 0:01:33]}  Rab8 {[%clk 0:00:40]} 22. Bd4 {[%clk 0:01:33]}  Be6 {[%clk 0:00:27]} 23. Rc2 {[%clk 0:01:28]}  Rb4 {[%clk 0:00:26]} 24. Bb6 {[%clk 0:01:20]}  Rxb6 {[%clk 0:00:23]} 25. axb6 {[%clk 0:01:20]}  Qxb6 {[%clk 0:00:24]} 26. Rca2 {[%clk 0:01:17]}  Ra8 {[%clk 0:00:12]} 27. Ra5 {[%clk 0:01:11]}  g6 {[%clk 0:00:10]} 28. Qa3 {[%clk 0:01:02]}  Qd4 {[%clk 0:00:07]} 29. Nf3 {[%clk 0:01:02]}  Qxc4 {[%clk 0:00:06]} 30. Rxa6 {[%clk 0:00:58]}  Rxa6 {[%clk 0:00:06]} 31. Qxa6 {[%clk 0:00:59]}  Qxe4 {[%clk 0:00:07]} 32. Qb6 {[%clk 0:00:40]}  h6 {[%clk 0:00:06]} 33. Qb8 {[%clk 0:00:34]}  Kg7 {[%clk 0:00:06]} 34. Ra8 {[%clk 0:00:33]}  Qd5 {[%clk 0:00:01]} 35. Qxf8+ {[%clk 0:00:32]} 1-0


[Site "https://www.chess.com"]

[Event "Titled Tuesday Blitz March 08 Late 2022"]
[White "Maze, Sebastien"]
[Black "Sanal, Vahap"]
[WhiteFideId "613762"]
[BlackFideId "6300545"]
[WhiteElo "2430"]
[BlackElo "2603"]
[Result "0-1"]
[Round "05"]
[TimeControl "180+1"]
[Date "2022.03.08"]
[WhiteClock "0:00:34"]
[BlackClock "0:01:51"]

1. e4 {[%clk 0:03:00]}  d6 {[%clk 0:03:00]} 2. d4 {[%clk 0:03:00]}  Nf6 {[%clk 0:03:00]} 3. Nc3 {[%clk 0:03:00]}  e5 {[%clk 0:03:00]} 4. Nf3 {[%clk 0:02:59]}  Nbd7 {[%clk 0:03:00]} 5. Bc4 {[%clk 0:02:57]}  Be7 {[%clk 0:03:01]} 6. a4 {[%clk 0:02:58]}  O-O {[%clk 0:03:01]} 7. O-O {[%clk 0:02:58]}  c6 {[%clk 0:03:01]} 8. Re1 {[%clk 0:02:58]}  h6 {[%clk 0:03:01]} 9. h3 {[%clk 0:02:56]}  Re8 {[%clk 0:03:01]} 10. Be3 {[%clk 0:02:54]}  exd4 {[%clk 0:03:01]} 11. Nxd4 {[%clk 0:02:43]}  Bf8 {[%clk 0:03:01]} 12. Bf4 {[%clk 0:02:29]}  Nc5 {[%clk 0:02:58]} 13. Qf3 {[%clk 0:02:20]}  Ne6 {[%clk 0:02:58]} 14. Nxe6 {[%clk 0:02:18]}  Bxe6 {[%clk 0:02:59]} 15. Bxe6 {[%clk 0:02:16]}  Rxe6 {[%clk 0:02:57]} 16. a5 {[%clk 0:02:06]}  Qe8 {[%clk 0:02:56]} 17. a6 {[%clk 0:02:05]}  b5 {[%clk 0:02:55]} 18. Bg3 {[%clk 0:01:54]}  b4 {[%clk 0:02:50]} 19. Ne2 {[%clk 0:01:50]}  Rxe4 {[%clk 0:02:48]} 20. Kf1 {[%clk 0:01:50]}  Qe6 {[%clk 0:02:43]} 21. Nf4 {[%clk 0:01:29]}  Qc4+ {[%clk 0:02:41]} 22. Kg1 {[%clk 0:01:22]}  Rae8 {[%clk 0:02:41]} 23. Rxe4 {[%clk 0:01:16]}  Nxe4 {[%clk 0:02:42]} 24. Qd3 {[%clk 0:01:13]}  Qxd3 {[%clk 0:02:35]} 25. Nxd3 {[%clk 0:01:12]}  Nxg3 {[%clk 0:02:30]} 26. fxg3 {[%clk 0:01:11]}  d5 {[%clk 0:02:31]} 27. Kf2 {[%clk 0:01:09]}  Bd6 {[%clk 0:02:29]} 28. Ra5 {[%clk 0:01:03]}  Kf8 {[%clk 0:02:28]} 29. Kf3 {[%clk 0:00:53]}  Ke7 {[%clk 0:02:19]} 30. b3 {[%clk 0:00:52]}  Kd7 {[%clk 0:02:17]} 31. Ra4 {[%clk 0:00:49]}  c5 {[%clk 0:02:15]} 32. Ra1 {[%clk 0:00:46]}  Kc6 {[%clk 0:02:14]} 33. h4 {[%clk 0:00:46]}  c4 {[%clk 0:02:11]} 34. Nf2 {[%clk 0:00:42]}  Bc5 {[%clk 0:02:08]} 35. Nh3 {[%clk 0:00:37]}  Re3+ {[%clk 0:02:06]} 36. Kg4 {[%clk 0:00:37]}  g6 {[%clk 0:02:01]} 37. Nf4 {[%clk 0:00:35]}  h5+ {[%clk 0:01:52]} 38. Kg5 {[%clk 0:00:35]}  Rxg3+ {[%clk 0:01:51]} 39. Kf6 {[%clk 0:00:34]}  Bd4+ {[%clk 0:01:51]} 0-1


[Site "https://www.chess.com"]

[Event "Titled Tuesday Blitz March 08 Late 2022"]
[White "Milanovic, Marko"]
[Black "Mikhailov, Viacheslav"]
[WhiteFideId "980129"]
[BlackFideId "4187369"]
[WhiteElo "2159"]
[BlackElo "2381"]
[Result "1-0"]
[Round "05"]
[TimeControl "180+1"]
[Date "2022.03.09"]
[WhiteClock "0:00:05"]
[BlackClock "0:00:05"]

1. e4 {[%clk 0:02:51]}  c5 {[%clk 0:03:00]} 2. Nf3 {[%clk 0:02:51]}  d6 {[%clk 0:03:00]} 3. Bb5+ {[%clk 0:02:51]}  Bd7 {[%clk 0:02:58]} 4. Bxd7+ {[%clk 0:02:50]}  Qxd7 {[%clk 0:02:59]} 5. c4 {[%clk 0:02:49]}  Nc6 {[%clk 0:02:58]} 6. d4 {[%clk 0:02:48]}  cxd4 {[%clk 0:02:59]} 7. Nxd4 {[%clk 0:02:49]}  g6 {[%clk 0:02:59]} 8. O-O {[%clk 0:02:49]}  Bg7 {[%clk 0:02:59]} 9. Be3 {[%clk 0:02:50]}  Nf6 {[%clk 0:03:00]} 10. f3 {[%clk 0:02:50]}  O-O {[%clk 0:03:00]} 11. Nc3 {[%clk 0:02:51]}  Rfd8 {[%clk 0:03:00]} 12. Qd2 {[%clk 0:02:50]}  e6 {[%clk 0:03:00]} 13. Rfd1 {[%clk 0:02:48]}  d5 {[%clk 0:03:00]} 14. cxd5 {[%clk 0:02:38]}  exd5 {[%clk 0:03:01]} 15. Bg5 {[%clk 0:02:36]}  dxe4 {[%clk 0:02:56]} 16. Nxc6 {[%clk 0:02:32]}  Qxd2 {[%clk 0:02:40]} 17. Ne7+ {[%clk 0:02:32]}  Kf8 {[%clk 0:02:40]} 18. Rxd2 {[%clk 0:02:22]}  Rxd2 {[%clk 0:02:38]} 19. Bxd2 {[%clk 0:02:20]}  Kxe7 {[%clk 0:02:38]} 20. Bg5 {[%clk 0:02:20]}  Kd7 {[%clk 0:02:08]} 21. Rd1+ {[%clk 0:02:14]}  Kc6 {[%clk 0:02:08]} 22. fxe4 {[%clk 0:02:02]}  Re8 {[%clk 0:02:06]} 23. Re1 {[%clk 0:01:49]}  h6 {[%clk 0:02:01]} 24. Bd2 {[%clk 0:01:44]}  Rd8 {[%clk 0:01:43]} 25. Re2 {[%clk 0:01:40]}  Ng4 {[%clk 0:01:32]} 26. h3 {[%clk 0:01:32]}  Ne5 {[%clk 0:00:43]} 27. Kf1 {[%clk 0:01:14]}  Nc4 {[%clk 0:00:42]} 28. Bf4 {[%clk 0:01:04]}  Bxc3 {[%clk 0:00:38]} 29. bxc3 {[%clk 0:01:03]}  Rd3 {[%clk 0:00:38]} 30. Bxh6 {[%clk 0:00:59]}  Rxc3 {[%clk 0:00:36]} 31. Kf2 {[%clk 0:00:58]}  Ne5 {[%clk 0:00:33]} 32. Bg7 {[%clk 0:00:52]}  Nd3+ {[%clk 0:00:32]} 33. Ke3 {[%clk 0:00:40]}  Ra3 {[%clk 0:00:32]} 34. Rc2+ {[%clk 0:00:39]}  Nc5+ {[%clk 0:00:23]} 35. Ke2 {[%clk 0:00:34]}  Ra4 {[%clk 0:00:22]} 36. Kf3 {[%clk 0:00:30]}  b6 {[%clk 0:00:19]} 37. Re2 {[%clk 0:00:26]}  Ra3+ {[%clk 0:00:17]} 38. Kg4 {[%clk 0:00:24]}  Ne6 {[%clk 0:00:17]} 39. Bf6 {[%clk 0:00:21]}  Ra4 {[%clk 0:00:17]} 40. Kf3 {[%clk 0:00:21]}  b5 {[%clk 0:00:16]} 41. Rc2+ {[%clk 0:00:20]}  Kb7 {[%clk 0:00:15]} 42. Ke3 {[%clk 0:00:19]}  b4 {[%clk 0:00:12]} 43. g3 {[%clk 0:00:17]}  Ra3+ {[%clk 0:00:11]} 44. Kf2 {[%clk 0:00:17]}  a5 {[%clk 0:00:12]} 45. h4 {[%clk 0:00:18]}  a4 {[%clk 0:00:10]} 46. Be7 {[%clk 0:00:13]}  Nd4 {[%clk 0:00:06]} 47. Rb2 {[%clk 0:00:10]}  Nc6 {[%clk 0:00:04]} 48. Bxb4 {[%clk 0:00:09]}  Rd3 {[%clk 0:00:04]} 49. Bd2+ {[%clk 0:00:06]}  Kc8 {[%clk 0:00:04]} 50. Bf4 {[%clk 0:00:07]}  Kd7 {[%clk 0:00:04]} 51. Ke2 {[%clk 0:00:05]}  Rc3 {[%clk 0:00:03]} 52. g4 {[%clk 0:00:04]}  a3 {[%clk 0:00:03]} 53. Rd2+ {[%clk 0:00:04]}  Ke6 {[%clk 0:00:03]} 54. h5 {[%clk 0:00:04]}  gxh5 {[%clk 0:00:02]} 55. gxh5 {[%clk 0:00:05]}  Kf6 {[%clk 0:00:01]} 56. Be3 {[%clk 0:00:06]}  Kg7 {[%clk 0:00:01]} 57. Rd6 {[%clk 0:00:05]}  Kh7 {[%clk 0:00:05]} 58. Rd7 {[%clk 0:00:05]}  Ne5 {[%clk 0:00:01]} 59. Re7 {[%clk 0:00:05]}  Rc2+ {[%clk 0:00:01]} 60. Kd1 {[%clk 0:00:05]}  Rc3 {[%clk 0:00:01]} 61. Bd4 {[%clk 0:00:02]}  Rd3+ {[%clk 0:00:01]} 62. Kc2 {[%clk 0:00:03]}  Rxd4 {[%clk 0:00:02]} 63. Rxe5 {[%clk 0:00:04]}  Kh6 {[%clk 0:00:02]} 64. Kc3 {[%clk 0:00:05]}  Ra4 {[%clk 0:00:02]} 65. Rf5 {[%clk 0:00:04]}  Kg7 {[%clk 0:00:01]} 66. Kb3 {[%clk 0:00:04]}  Rxe4 {[%clk 0:00:01]} 67. Kxa3 {[%clk 0:00:05]}  Rh4 {[%clk 0:00:01]} 68. Kb3 {[%clk 0:00:05]}  f6 {[%clk 0:00:01]} 69. a4 {[%clk 0:00:05]}  Rh3+ {[%clk 0:00:01]} 70. Kb4 {[%clk 0:00:05]}  Rh1 {[%clk 0:00:02]} 71. a5 {[%clk 0:00:05]}  Rb1+ {[%clk 0:00:03]} 72. Kc5 {[%clk 0:00:05]}  Ra1 {[%clk 0:00:04]} 73. Kb6 {[%clk 0:00:06]}  Kh6 {[%clk 0:00:04]} 74. a6 {[%clk 0:00:05]}  Kg7 {[%clk 0:00:03]} 75. a7 {[%clk 0:00:05]}  Rb1+ {[%clk 0:00:04]} 76. Rb5 {[%clk 0:00:04]}  Ra1 {[%clk 0:00:04]} 77. Ra5 {[%clk 0:00:05]}  Rb1+ {[%clk 0:00:05]} 78. Ka6 {[%clk 0:00:05]}  Rd1 {[%clk 0:00:05]} 79. a8=Q {[%clk 0:00:05]} 1-0


[Site "https://www.chess.com"]

[Event "Titled Tuesday Blitz March 08 Late 2022"]
[White "Moral Garcia, Serafin"]
[Black "Dias, Joao Batista"]
[WhiteFideId "2201925"]
[BlackFideId "2108240"]
[WhiteElo "2228"]
[BlackElo "1898"]
[Result "1-0"]
[Round "05"]
[TimeControl "180+1"]
[Date "2022.03.09"]
[WhiteClock "0:01:53"]
[BlackClock "0:01:07"]

1. e4 {[%clk 0:03:00]}  e6 {[%clk 0:02:59]} 2. d4 {[%clk 0:03:00]}  d5 {[%clk 0:02:59]} 3. Nd2 {[%clk 0:02:59]}  Nd7 {[%clk 0:02:56]} 4. c3 {[%clk 0:02:56]}  dxe4 {[%clk 0:02:56]} 5. Nxe4 {[%clk 0:02:55]}  Ngf6 {[%clk 0:02:57]} 6. Bd3 {[%clk 0:02:51]}  Be7 {[%clk 0:02:55]} 7. Nf3 {[%clk 0:02:49]}  c5 {[%clk 0:02:51]} 8. dxc5 {[%clk 0:02:47]}  Nxc5 {[%clk 0:02:50]} 9. Nxc5 {[%clk 0:02:46]}  Bxc5 {[%clk 0:02:49]} 10. O-O {[%clk 0:02:46]}  O-O {[%clk 0:02:47]} 11. Qe2 {[%clk 0:02:46]}  Be7 {[%clk 0:02:40]} 12. Bg5 {[%clk 0:02:45]}  h6 {[%clk 0:02:39]} 13. Bh4 {[%clk 0:02:45]}  b6 {[%clk 0:02:37]} 14. Rad1 {[%clk 0:02:44]}  Qc7 {[%clk 0:02:31]} 15. Bxf6 {[%clk 0:02:42]}  Bxf6 {[%clk 0:02:30]} 16. Qe4 {[%clk 0:02:34]}  g6 {[%clk 0:02:27]} 17. Qxa8 {[%clk 0:02:34]}  Ba6 {[%clk 0:02:27]} 18. Qe4 {[%clk 0:02:33]}  Bb7 {[%clk 0:02:25]} 19. Qe3 {[%clk 0:02:31]}  Bg7 {[%clk 0:02:23]} 20. Be4 {[%clk 0:02:31]}  Bc8 {[%clk 0:02:22]} 21. Rfe1 {[%clk 0:02:26]}  Qc4 {[%clk 0:02:14]} 22. a3 {[%clk 0:02:23]}  Qc7 {[%clk 0:02:09]} 23. Qd2 {[%clk 0:02:17]}  Ba6 {[%clk 0:02:08]} 24. Qd6 {[%clk 0:02:14]}  Qc4 {[%clk 0:02:07]} 25. Bd3 {[%clk 0:02:14]}  Qc8 {[%clk 0:02:05]} 26. Bxa6 {[%clk 0:02:14]}  Qxa6 {[%clk 0:02:05]} 27. Qc7 {[%clk 0:02:11]}  Bf6 {[%clk 0:02:02]} 28. h3 {[%clk 0:02:11]}  Qb5 {[%clk 0:01:57]} 29. Ne5 {[%clk 0:02:09]}  Qxb2 {[%clk 0:01:53]} 30. Nd7 {[%clk 0:02:08]}  Bd8 {[%clk 0:01:49]} 31. Qc6 {[%clk 0:02:03]}  Bh4 {[%clk 0:01:29]} 32. g3 {[%clk 0:01:56]}  Rd8 {[%clk 0:01:07]} 33. gxh4 {[%clk 0:01:55]}  Qc2 {[%clk 0:01:07]} 34. Nf6+ {[%clk 0:01:53]} 1-0


[Site "https://www.chess.com"]

[Event "Titled Tuesday Blitz March 08 Late 2022"]
[White "Oparin, Grigoriy"]
[Black "Djordjevic, Vuk"]
[WhiteFideId "24125890"]
[BlackFideId "902098"]
[WhiteElo "2665"]
[BlackElo "2463"]
[Result "1-0"]
[Round "05"]
[TimeControl "180+1"]
[Date "2022.03.08"]
[WhiteClock "0:01:33"]
[BlackClock "0:00:02"]

1. e4 {[%clk 0:02:57]}  e6 {[%clk 0:02:59]} 2. d4 {[%clk 0:02:57]}  d5 {[%clk 0:02:59]} 3. Nc3 {[%clk 0:02:58]}  Bb4 {[%clk 0:02:59]} 4. e5 {[%clk 0:02:58]}  c5 {[%clk 0:02:59]} 5. a3 {[%clk 0:02:58]}  Bxc3+ {[%clk 0:02:59]} 6. bxc3 {[%clk 0:02:59]}  Ne7 {[%clk 0:03:00]} 7. a4 {[%clk 0:02:56]}  Qc7 {[%clk 0:02:59]} 8. f4 {[%clk 0:02:53]}  O-O {[%clk 0:02:53]} 9. Nf3 {[%clk 0:02:52]}  b6 {[%clk 0:02:52]} 10. Bd3 {[%clk 0:02:49]}  h6 {[%clk 0:02:50]} 11. O-O {[%clk 0:02:33]}  Ba6 {[%clk 0:02:48]} 12. Bxa6 {[%clk 0:02:33]}  Nxa6 {[%clk 0:02:48]} 13. Qd3 {[%clk 0:02:34]}  Qc8 {[%clk 0:02:37]} 14. Ba3 {[%clk 0:02:30]}  Nb8 {[%clk 0:02:33]} 15. g4 {[%clk 0:02:27]}  Re8 {[%clk 0:02:11]} 16. Nh4 {[%clk 0:02:26]}  cxd4 {[%clk 0:02:08]} 17. cxd4 {[%clk 0:02:27]}  Qc4 {[%clk 0:01:54]} 18. Qxc4 {[%clk 0:02:27]}  dxc4 {[%clk 0:01:54]} 19. Bxe7 {[%clk 0:02:28]}  Rxe7 {[%clk 0:01:54]} 20. c3 {[%clk 0:02:28]}  Nc6 {[%clk 0:01:45]} 21. f5 {[%clk 0:02:28]}  Rd7 {[%clk 0:01:32]} 22. f6 {[%clk 0:02:28]}  g6 {[%clk 0:01:22]} 23. Ng2 {[%clk 0:02:26]}  Na5 {[%clk 0:00:49]} 24. Ne3 {[%clk 0:02:27]}  Rc8 {[%clk 0:00:48]} 25. Rab1 {[%clk 0:02:26]}  Nb3 {[%clk 0:00:43]} 26. Rfd1 {[%clk 0:02:23]}  Kf8 {[%clk 0:00:20]} 27. Kf2 {[%clk 0:02:23]}  Rdc7 {[%clk 0:00:14]} 28. h4 {[%clk 0:02:12]}  a6 {[%clk 0:00:14]} 29. Nxc4 {[%clk 0:02:10]}  Rxc4 {[%clk 0:00:14]} 30. Rxb3 {[%clk 0:02:11]}  Rxc3 {[%clk 0:00:14]} 31. Rxc3 {[%clk 0:02:08]}  Rxc3 {[%clk 0:00:14]} 32. Rb1 {[%clk 0:01:52]}  Rc6 {[%clk 0:00:13]} 33. Ke3 {[%clk 0:01:52]}  Ke8 {[%clk 0:00:14]} 34. Ke4 {[%clk 0:01:49]}  Kd7 {[%clk 0:00:13]} 35. Rb4 {[%clk 0:01:43]}  Kc7 {[%clk 0:00:07]} 36. d5 {[%clk 0:01:43]}  exd5+ {[%clk 0:00:07]} 37. Kxd5 {[%clk 0:01:44]}  Rc5+ {[%clk 0:00:08]} 38. Ke4 {[%clk 0:01:44]}  b5 {[%clk 0:00:03]} 39. axb5 {[%clk 0:01:39]}  axb5 {[%clk 0:00:04]} 40. e6 {[%clk 0:01:33]}  fxe6 {[%clk 0:00:02]} 41. f7 {[%clk 0:01:33]} 1-0


[Site "https://www.chess.com"]

[Event "Titled Tuesday Blitz March 08 Late 2022"]
[White "Pavlidou, Ekaterini"]
[Black "Denishev, Marat"]
[WhiteFideId "4213262"]
[BlackFideId "24131563"]
[WhiteElo "2127"]
[BlackElo "2197"]
[Result "0-1"]
[Round "05"]
[TimeControl "180+1"]
[Date "2022.03.09"]
[WhiteClock "0:00:22"]
[BlackClock "0:00:07"]

1. d4 {[%clk 0:02:39]}  Nf6 {[%clk 0:02:56]} 2. c4 {[%clk 0:02:40]}  g6 {[%clk 0:02:55]} 3. Nc3 {[%clk 0:02:40]}  Bg7 {[%clk 0:02:55]} 4. e4 {[%clk 0:02:40]}  O-O {[%clk 0:02:56]} 5. Bd3 {[%clk 0:02:40]}  d6 {[%clk 0:02:55]} 6. Nge2 {[%clk 0:02:41]}  e5 {[%clk 0:02:55]} 7. d5 {[%clk 0:02:42]}  a5 {[%clk 0:02:54]} 8. h3 {[%clk 0:02:42]}  Na6 {[%clk 0:02:54]} 9. Be3 {[%clk 0:02:43]}  Nd7 {[%clk 0:02:53]} 10. g4 {[%clk 0:02:42]}  Ndc5 {[%clk 0:02:52]} 11. Bb1 {[%clk 0:02:42]}  f5 {[%clk 0:02:52]} 12. exf5 {[%clk 0:02:41]}  gxf5 {[%clk 0:02:53]} 13. gxf5 {[%clk 0:02:40]}  Bxf5 {[%clk 0:02:54]} 14. Ng3 {[%clk 0:02:40]}  Bxb1 {[%clk 0:02:45]} 15. Rxb1 {[%clk 0:02:39]}  e4 {[%clk 0:02:38]} 16. Qg4 {[%clk 0:02:29]}  Nb4 {[%clk 0:02:26]} 17. O-O {[%clk 0:02:22]}  Kh8 {[%clk 0:02:23]} 18. Nh5 {[%clk 0:02:17]}  Rg8 {[%clk 0:02:22]} 19. Nxg7 {[%clk 0:02:16]}  Rxg7 {[%clk 0:02:22]} 20. Bd4 {[%clk 0:02:17]}  Qf8 {[%clk 0:02:07]} 21. Kh2 {[%clk 0:02:11]}  Nc2 {[%clk 0:02:00]} 22. Bxg7+ {[%clk 0:02:08]}  Qxg7 {[%clk 0:02:01]} 23. Qxg7+ {[%clk 0:02:08]}  Kxg7 {[%clk 0:02:02]} 24. Rg1+ {[%clk 0:01:58]}  Kf7 {[%clk 0:01:59]} 25. Rg4 {[%clk 0:01:58]}  Re8 {[%clk 0:01:55]} 26. Rbg1 {[%clk 0:01:56]}  Nd4 {[%clk 0:01:56]} 27. Rg7+ {[%clk 0:01:55]}  Kf6 {[%clk 0:01:56]} 28. Rxc7 {[%clk 0:01:52]}  Nf3+ {[%clk 0:01:56]} 29. Kh1 {[%clk 0:01:51]}  Nd3 {[%clk 0:01:57]} 30. Rgg7 {[%clk 0:01:47]}  Nc5 {[%clk 0:01:01]} 31. Rxh7 {[%clk 0:01:43]}  Rg8 {[%clk 0:00:54]} 32. Rcf7+ {[%clk 0:01:41]}  Ke5 {[%clk 0:00:53]} 33. Rfg7 {[%clk 0:01:37]}  Rf8 {[%clk 0:00:51]} 34. Ne2 {[%clk 0:01:33]}  Nd3 {[%clk 0:00:45]} 35. Rh5+ {[%clk 0:01:20]}  Kf6 {[%clk 0:00:44]} 36. Rd7 {[%clk 0:01:08]}  Rg8 {[%clk 0:00:38]} 37. Rh6+ {[%clk 0:00:59]}  Kg5 {[%clk 0:00:25]} 38. Rhxd6 {[%clk 0:00:52]}  Nxf2+ {[%clk 0:00:18]} 39. Kg2 {[%clk 0:00:52]}  Nd3 {[%clk 0:00:19]} 40. Ng3 {[%clk 0:00:43]}  Nh4+ {[%clk 0:00:17]} 41. Kf1 {[%clk 0:00:40]}  Kf4 {[%clk 0:00:18]} 42. Nh5+ {[%clk 0:00:36]}  Ke3 {[%clk 0:00:16]} 43. Rg7 {[%clk 0:00:35]}  Rc8 {[%clk 0:00:09]} 44. Rg3+ {[%clk 0:00:33]}  Nf3 {[%clk 0:00:09]} 45. Rxf3+ {[%clk 0:00:32]}  Kxf3 {[%clk 0:00:07]} 46. Rf6+ {[%clk 0:00:29]}  Ke3 {[%clk 0:00:07]} 47. b3 {[%clk 0:00:28]}  a4 {[%clk 0:00:07]} 48. Ng3 {[%clk 0:00:28]}  axb3 {[%clk 0:00:07]} 49. axb3 {[%clk 0:00:28]}  Ra8 {[%clk 0:00:07]} 50. Nf5+ {[%clk 0:00:28]}  Kd2 {[%clk 0:00:07]} 51. Nd4 {[%clk 0:00:27]}  Ra1+ {[%clk 0:00:06]} 52. Kg2 {[%clk 0:00:27]}  e3 {[%clk 0:00:06]} 53. Nf3+ {[%clk 0:00:27]}  Ke2 {[%clk 0:00:05]} 54. Ng1+ {[%clk 0:00:26]}  Kd2 {[%clk 0:00:05]} 55. Re6 {[%clk 0:00:21]}  Nf4+ {[%clk 0:00:04]} 56. Kf3 {[%clk 0:00:20]}  Nxe6 {[%clk 0:00:04]} 57. dxe6 {[%clk 0:00:20]}  Rxg1 {[%clk 0:00:05]} 58. e7 {[%clk 0:00:20]}  Rg8 {[%clk 0:00:05]} 59. h4 {[%clk 0:00:20]}  e2 {[%clk 0:00:05]} 60. h5 {[%clk 0:00:19]}  e1=Q {[%clk 0:00:05]} 61. Kf4 {[%clk 0:00:20]}  Qxe7 {[%clk 0:00:04]} 62. Kf5 {[%clk 0:00:20]}  Rf8+ {[%clk 0:00:05]} 63. Kg4 {[%clk 0:00:21]}  Qg7+ {[%clk 0:00:05]} 64. Kh4 {[%clk 0:00:21]}  Rf4+ {[%clk 0:00:05]} 65. Kh3 {[%clk 0:00:21]}  Qg4+ {[%clk 0:00:05]} 66. Kh2 {[%clk 0:00:22]}  Rf5 {[%clk 0:00:06]} 67. h6 {[%clk 0:00:22]}  Rh5# {[%clk 0:00:07]} 0-1


[Site "https://www.chess.com"]